[Event "*** Titled Tuesday Blitz"]
[Site "Chess.com"]
[Date "2020.04.07"]
[Round "1"]
[White "SketchyMoves"]
[Black "aloe_normansen"]
[Result "1-0"]
[WhiteElo "2543"]
[BlackElo "2141"]
[TimeControl "180+1"]
[EndTime "13:06:54 PDT"]
[Termination "SketchyMoves won by checkmate"]

1. e4 {[%clk 0:03:00.1]} 1... c5 {[%clk 0:02:59.7]} 2. Nc3 {[%clk 0:02:59.4]}
2... d6 {[%clk 0:02:59.5]} 3. d4 {[%clk 0:02:58.6]} 3... cxd4 {[%clk 0:02:58.8]}
4. Qxd4 {[%clk 0:02:59.5]} 4... Nc6 {[%clk 0:02:59]} 5. Qd2 {[%clk 0:02:58.9]}
5... Nf6 {[%clk 0:02:57.8]} 6. b3 {[%clk 0:02:56.8]} 6... g6 {[%clk 0:02:55.4]}
7. Bb2 {[%clk 0:02:56.1]} 7... Bg7 {[%clk 0:02:55.6]} 8. O-O-O {[%clk
0:02:55.5]} 8... Bd7 {[%clk 0:02:36.3]} 9. f3 {[%clk 0:02:51.5]} 9... Qa5 {[%clk
0:02:28.3]} 10. g4 {[%clk 0:02:42.5]} 10... h5 {[%clk 0:02:19.2]} 11. g5 {[%clk
0:02:37.2]} 11... Nh7 {[%clk 0:02:06.7]} 12. h4 {[%clk 0:02:36.2]} 12... O-O
{[%clk 0:01:59.2]} 13. Kb1 {[%clk 0:02:18.2]} 13... Rac8 {[%clk 0:01:42.5]} 14.
f4 {[%clk 0:02:01]} 14... Nb4 {[%clk 0:01:03.3]} 15. a3 {[%clk 0:01:46]} 15...
Nxc2 {[%clk 0:00:29.7]} 16. Kxc2 {[%clk 0:01:39.7]} 16... b5 {[%clk 0:00:20.3]}
17. Ne2 {[%clk 0:01:04.4]} 17... b4 {[%clk 0:00:19.2]} 18. axb4 {[%clk
0:01:02.7]} 18... Qxb4 {[%clk 0:00:19.7]} 19. Nd4 {[%clk 0:00:53.7]} 19... Be6
{[%clk 0:00:16.2]} 20. Nxe6 {[%clk 0:00:46.6]} 20... fxe6 {[%clk 0:00:16.4]} 21.
Bc4 {[%clk 0:00:46.2]} 21... d5 {[%clk 0:00:13.5]} 22. exd5 {[%clk 0:00:45.3]}
22... exd5 {[%clk 0:00:14]} 23. Qxd5+ {[%clk 0:00:34.8]} 23... Kh8 {[%clk
0:00:14]} 24. Rhf1 {[%clk 0:00:27.5]} 24... Rf5 {[%clk 0:00:13.9]} 25. Qe6
{[%clk 0:00:21.2]} 25... Rfc5 {[%clk 0:00:14]} 26. Rd3 {[%clk 0:00:14.9]} 26...
Nf8 {[%clk 0:00:13.5]} 27. Qg8# {[%clk 0:00:13.7]} 1-0

[Event "*** Titled Tuesday Blitz"]
[Site "Chess.com"]
[Date "2020.04.07"]
[Round "1"]
[White "IMUltimateBeast"]
[Black "nomessi"]
[Result "1-0"]
[WhiteElo "2630"]
[BlackElo "2300"]
[TimeControl "180+1"]
[EndTime "13:06:55 PDT"]
[Termination "IMUltimateBeast won by resignation"]

1. d4 {[%clk 0:02:54.2]} 1... d5 {[%clk 0:02:57.9]} 2. Bf4 {[%clk 0:02:54.1]}
2... c5 {[%clk 0:02:57]} 3. e3 {[%clk 0:02:44.9]} 3... Nc6 {[%clk 0:02:54.1]} 4.
c3 {[%clk 0:02:36.7]} 4... e6 {[%clk 0:02:51.5]} 5. Nd2 {[%clk 0:02:21.4]} 5...
Nf6 {[%clk 0:02:51.1]} 6. Bd3 {[%clk 0:02:21.1]} 6... Bd6 {[%clk 0:02:50.9]} 7.
Bxd6 {[%clk 0:02:20.9]} 7... Qxd6 {[%clk 0:02:50.5]} 8. f4 {[%clk 0:02:21.3]}
8... cxd4 {[%clk 0:02:44.1]} 9. cxd4 {[%clk 0:02:20.9]} 9... O-O {[%clk
0:02:43.5]} 10. a3 {[%clk 0:02:20.2]} 10... b6 {[%clk 0:02:41.7]} 11. Ngf3
{[%clk 0:02:20.2]} 11... Bb7 {[%clk 0:02:41.2]} 12. Ne5 {[%clk 0:02:20.7]} 12...
Rac8 {[%clk 0:02:39.2]} 13. Qf3 {[%clk 0:02:19.7]} 13... Ne7 {[%clk 0:02:33.8]}
14. O-O {[%clk 0:02:18.2]} 14... Rc7 {[%clk 0:02:25.9]} 15. g4 {[%clk
0:02:02.3]} 15... g6 {[%clk 0:02:14.3]} 16. g5 {[%clk 0:02:01]} 16... Nh5 {[%clk
0:01:55.2]} 17. Qe2 {[%clk 0:01:44.4]} 17... Nf5 {[%clk 0:01:51.4]} 18. Ndf3
{[%clk 0:01:42.9]} 18... Rfc8 {[%clk 0:01:47.5]} 19. Ng4 {[%clk 0:01:39.2]}
19... Kg7 {[%clk 0:01:43.7]} 20. Nfe5 {[%clk 0:01:38.7]} 20... Qe7 {[%clk
0:01:43.6]} 21. Qf3 {[%clk 0:01:17.4]} 21... Nd6 {[%clk 0:01:42.3]} 22. Qh3
{[%clk 0:01:15.7]} 22... Ne4 {[%clk 0:01:39]} 23. Qg2 {[%clk 0:01:13]} 23... Qe8
{[%clk 0:01:33.3]} 24. Qh3 {[%clk 0:01:11.3]} 24... Qa4 {[%clk 0:01:30.6]} 25.
Bxe4 {[%clk 0:00:59.2]} 25... dxe4 {[%clk 0:01:30.2]} 26. Nf6 {[%clk 0:00:59.1]}
26... Qb3 {[%clk 0:01:20.4]} 27. Nxh5+ {[%clk 0:00:50.4]} 27... gxh5 {[%clk
0:01:19.5]} 28. Rae1 {[%clk 0:00:48.2]} 28... Qxb2 {[%clk 0:01:01.9]} 29. Qxh5
{[%clk 0:00:45.9]} 29... Qd2 {[%clk 0:00:57.9]} 30. Qh6+ {[%clk 0:00:45]} 30...
Kg8 {[%clk 0:00:56.9]} 31. Ng4 {[%clk 0:00:45.2]} 31... f5 {[%clk 0:00:50.7]}
32. Qxe6+ {[%clk 0:00:43.8]} 32... Kh8 {[%clk 0:00:48.9]} 33. Qf6+ {[%clk
0:00:40.2]} 33... Rg7 {[%clk 0:00:47.7]} 34. Nh6 {[%clk 0:00:38.8]} 34... Bd5
{[%clk 0:00:35.4]} 35. Nxf5 {[%clk 0:00:37.3]} 35... Rg8 {[%clk 0:00:34.3]} 36.
Nxg7 {[%clk 0:00:34.6]} 1-0

[Event "*** Titled Tuesday Blitz"]
[Site "Chess.com"]
[Date "2020.04.07"]
[Round "1"]
[White "vladislavkovalev"]
[Black "IMJonathanCarlstedt"]
[Result "1-0"]
[WhiteElo "2901"]
[BlackElo "2463"]
[TimeControl "180+1"]
[EndTime "13:06:56 PDT"]
[Termination "vladislavkovalev won by resignation"]

1. e4 {[%clk 0:03:00.9]} 1... g6 {[%clk 0:02:58.8]} 2. d4 {[%clk 0:03:00.9]}
2... Bg7 {[%clk 0:02:56.7]} 3. Nc3 {[%clk 0:03:01.2]} 3... a6 {[%clk 0:02:55.6]}
4. Be3 {[%clk 0:03:00.2]} 4... d6 {[%clk 0:02:54.5]} 5. Qd2 {[%clk 0:03:00.5]}
5... b5 {[%clk 0:02:53]} 6. O-O-O {[%clk 0:02:59.7]} 6... Bb7 {[%clk 0:02:52.5]}
7. f3 {[%clk 0:02:59.7]} 7... Nd7 {[%clk 0:02:51]} 8. h4 {[%clk 0:02:59.2]} 8...
Ngf6 {[%clk 0:02:41.4]} 9. Bh6 {[%clk 0:02:57.8]} 9... O-O {[%clk 0:02:23.1]}
10. h5 {[%clk 0:02:57.6]} 10... e5 {[%clk 0:02:21.4]} 11. hxg6 {[%clk
0:02:38.7]} 11... fxg6 {[%clk 0:02:20.3]} 12. Bxg7 {[%clk 0:02:38.9]} 12... Kxg7
{[%clk 0:02:20.4]} 13. Qh6+ {[%clk 0:02:39.8]} 13... Kg8 {[%clk 0:02:16.2]} 14.
d5 {[%clk 0:02:38.2]} 14... Qe7 {[%clk 0:02:11.4]} 15. Nh3 {[%clk 0:02:36.8]}
15... Qg7 {[%clk 0:02:08.9]} 16. Ng5 {[%clk 0:02:34.5]} 16... Qxh6 {[%clk
0:01:59.9]} 17. Rxh6 {[%clk 0:02:35.4]} 17... b4 {[%clk 0:01:44.6]} 18. Na4
{[%clk 0:02:32.8]} 18... Nb6 {[%clk 0:01:38.9]} 19. Nxb6 {[%clk 0:02:29.3]}
19... cxb6 {[%clk 0:01:39.8]} 20. Be2 {[%clk 0:02:26.6]} 20... Rae8 {[%clk
0:01:23.3]} 21. Rdh1 {[%clk 0:02:25.7]} 21... Re7 {[%clk 0:01:22.7]} 22. Kd2
{[%clk 0:02:18]} 22... a5 {[%clk 0:01:21.1]} 23. Bb5 {[%clk 0:02:16.9]} 23...
Bc8 {[%clk 0:01:19.1]} 24. c3 {[%clk 0:01:55.8]} 24... bxc3+ {[%clk 0:01:02.2]}
25. bxc3 {[%clk 0:01:55.8]} 25... Bd7 {[%clk 0:00:59.8]} 26. c4 {[%clk
0:01:44.1]} 26... Bxb5 {[%clk 0:00:58.1]} 27. cxb5 {[%clk 0:01:45]} 27... Rc8
{[%clk 0:00:57.2]} 28. Ne6 {[%clk 0:01:45.3]} 28... Nd7 {[%clk 0:00:50.9]} 29.
g3 {[%clk 0:01:32.3]} 29... Nc5 {[%clk 0:00:50.4]} 30. Ng5 {[%clk 0:01:30.9]}
30... Rcc7 {[%clk 0:00:48.1]} 31. Rc1 {[%clk 0:01:25.9]} 31... Rb7 {[%clk
0:00:46.1]} 32. Ke3 {[%clk 0:01:24.4]} 32... Rbc7 {[%clk 0:00:45.3]} 33. f4
{[%clk 0:01:09.5]} 33... Rb7 {[%clk 0:00:33.3]} 34. f5 {[%clk 0:01:07.8]} 34...
gxf5 {[%clk 0:00:19.6]} 35. exf5 {[%clk 0:00:59.4]} 35... Rg7 {[%clk 0:00:19.1]}
36. Ne4 {[%clk 0:00:41.8]} 36... Nxe4 {[%clk 0:00:18.1]} 37. Kxe4 {[%clk
0:00:42.7]} 37... Rxg3 {[%clk 0:00:15.8]} 38. Rxd6 {[%clk 0:00:41.6]} 38... Rg4+
{[%clk 0:00:14.7]} 39. Kxe5 {[%clk 0:00:41.4]} 39... Rf7 {[%clk 0:00:13.2]} 40.
Rxb6 {[%clk 0:00:37.9]} 40... Rg1 {[%clk 0:00:13.2]} 41. Rxg1+ {[%clk
0:00:37.2]} 1-0

[Event "*** Titled Tuesday Blitz"]
[Site "Chess.com"]
[Date "2020.04.07"]
[Round "1"]
[White "econpower"]
[Black "Vusatiuk_Vladimir"]
[Result "1-0"]
[WhiteElo "2730"]
[BlackElo "2383"]
[TimeControl "180+1"]
[EndTime "13:06:56 PDT"]
[Termination "econpower won by resignation"]

1. c4 {[%clk 0:03:00.9]} 1... e5 {[%clk 0:02:57.9]} 2. g3 {[%clk 0:03:00.9]}
2... Nf6 {[%clk 0:02:58.4]} 3. Bg2 {[%clk 0:03:01.4]} 3... h6 {[%clk 0:02:59]}
4. Nc3 {[%clk 0:03:01.3]} 4... Bb4 {[%clk 0:02:59.5]} 5. Nd5 {[%clk 0:03:01.8]}
5... Be7 {[%clk 0:02:56.9]} 6. e3 {[%clk 0:03:01.8]} 6... O-O {[%clk 0:02:55.1]}
7. Ne2 {[%clk 0:03:01.6]} 7... c6 {[%clk 0:02:55.6]} 8. Nxf6+ {[%clk 0:02:57.6]}
8... Bxf6 {[%clk 0:02:56.5]} 9. Nc3 {[%clk 0:02:58.5]} 9... d6 {[%clk 0:02:56]}
10. O-O {[%clk 0:02:58.4]} 10... Be6 {[%clk 0:02:56.4]} 11. d3 {[%clk
0:02:58.8]} 11... Nd7 {[%clk 0:02:56.7]} 12. f4 {[%clk 0:02:49.6]} 12... g6
{[%clk 0:02:48.4]} 13. e4 {[%clk 0:02:48.6]} 13... Nc5 {[%clk 0:02:27]} 14. f5
{[%clk 0:02:47.8]} 14... Bd7 {[%clk 0:02:21.1]} 15. Bxh6 {[%clk 0:02:40.2]}
15... Bg7 {[%clk 0:02:15.3]} 16. Be3 {[%clk 0:02:16.3]} 16... b6 {[%clk
0:02:06]} 17. b4 {[%clk 0:02:14.8]} 17... Na6 {[%clk 0:02:03.4]} 18. a3 {[%clk
0:02:14.4]} 18... Nc7 {[%clk 0:01:59.4]} 19. Qd2 {[%clk 0:02:13.2]} 19... a5
{[%clk 0:01:46.5]} 20. Bxb6 {[%clk 0:02:11.7]} 20... axb4 {[%clk 0:01:45.6]} 21.
axb4 {[%clk 0:02:11.8]} 21... Qc8 {[%clk 0:01:45.1]} 22. Rxa8 {[%clk 0:02:07.4]}
22... Nxa8 {[%clk 0:01:46]} 23. Be3 {[%clk 0:02:08]} 23... gxf5 {[%clk
0:01:37.9]} 24. Bh6 {[%clk 0:02:07.7]} 24... f6 {[%clk 0:01:33.1]} 25. exf5
{[%clk 0:01:53.7]} 25... Bxf5 {[%clk 0:01:26.7]} 26. b5 {[%clk 0:01:53.4]} 26...
Bd7 {[%clk 0:01:23.1]} 27. Ra1 {[%clk 0:01:19.6]} 27... Nb6 {[%clk 0:01:17]} 28.
Be3 {[%clk 0:01:19.4]} 28... c5 {[%clk 0:00:38.6]} 29. Ra6 {[%clk 0:01:11.2]}
29... Qc7 {[%clk 0:00:37.7]} 30. Nd5 {[%clk 0:01:10.8]} 30... Nxd5 {[%clk
0:00:37.4]} 31. Bxd5+ {[%clk 0:01:11.7]} 31... Kh7 {[%clk 0:00:37.6]} 32. Qe2
{[%clk 0:01:02.5]} 32... Be8 {[%clk 0:00:37.8]} 33. Qg4 {[%clk 0:01:01.8]} 33...
Bf7 {[%clk 0:00:36.8]} 34. Be4+ {[%clk 0:00:58.3]} 34... Kg8 {[%clk 0:00:33]}
35. Qf5 {[%clk 0:00:58.9]} 35... Rb8 {[%clk 0:00:31.3]} 36. h4 {[%clk 0:00:58]}
36... Qe7 {[%clk 0:00:28.5]} 37. h5 {[%clk 0:00:57.3]} 37... Be6 {[%clk
0:00:08.4]} 38. Qh7+ {[%clk 0:00:56.1]} 38... Kf8 {[%clk 0:00:08.9]} 39. h6
{[%clk 0:00:56.2]} 39... Bxh6 {[%clk 0:00:08.6]} 40. Bxh6+ {[%clk 0:00:55.5]}
40... Ke8 {[%clk 0:00:08.5]} 41. Qh8+ {[%clk 0:00:49.7]} 1-0

[Event "*** Titled Tuesday Blitz"]
[Site "Chess.com"]
[Date "2020.04.07"]
[Round "1"]
[White "Sebastian"]
[Black "skoularikii"]
[Result "1-0"]
[WhiteElo "3015"]
[BlackElo "2487"]
[TimeControl "180+1"]
[EndTime "13:06:57 PDT"]
[Termination "Sebastian won by resignation"]

1. d4 {[%clk 0:02:56]} 1... Nf6 {[%clk 0:02:55.5]} 2. Nf3 {[%clk 0:02:55.9]}
2... e6 {[%clk 0:02:55.2]} 3. e3 {[%clk 0:02:56]} 3... c5 {[%clk 0:02:53.9]} 4.
Bd3 {[%clk 0:02:56.2]} 4... Nc6 {[%clk 0:02:50.1]} 5. O-O {[%clk 0:02:55.8]}
5... d5 {[%clk 0:02:46.6]} 6. b3 {[%clk 0:02:54.9]} 6... Be7 {[%clk 0:02:42.3]}
7. dxc5 {[%clk 0:02:54.3]} 7... Bxc5 {[%clk 0:02:42]} 8. Bb2 {[%clk 0:02:54.6]}
8... O-O {[%clk 0:02:41.3]} 9. a3 {[%clk 0:02:53.7]} 9... a5 {[%clk 0:02:38.5]}
10. Nbd2 {[%clk 0:02:53.1]} 10... Bd7 {[%clk 0:02:32.5]} 11. c4 {[%clk
0:02:52.8]} 11... Be7 {[%clk 0:02:25.7]} 12. Qe2 {[%clk 0:02:48.1]} 12... Qb8
{[%clk 0:02:19.5]} 13. Rfd1 {[%clk 0:02:44.1]} 13... Rc8 {[%clk 0:02:15.9]} 14.
e4 {[%clk 0:02:22.9]} 14... dxc4 {[%clk 0:02:04.2]} 15. Nxc4 {[%clk 0:02:12.4]}
15... b5 {[%clk 0:02:02.3]} 16. Ne3 {[%clk 0:02:06.2]} 16... Qb7 {[%clk
0:01:36]} 17. e5 {[%clk 0:01:58.8]} 17... Nd5 {[%clk 0:01:27.2]} 18. Nxd5 {[%clk
0:01:54.3]} 18... exd5 {[%clk 0:01:27.4]} 19. Bxb5 {[%clk 0:01:41.8]} 19... Bg4
{[%clk 0:01:27.3]} 20. Bxc6 {[%clk 0:01:08]} 20... Rxc6 {[%clk 0:01:25.4]} 21.
h3 {[%clk 0:01:07.4]} 21... Bxf3 {[%clk 0:01:02.1]} 22. Qxf3 {[%clk 0:01:06.6]}
22... Rc2 {[%clk 0:01:02.7]} 23. Bd4 {[%clk 0:01:05.1]} 23... Rb8 {[%clk
0:00:57.6]} 24. Rd3 {[%clk 0:01:04.8]} 24... Qc7 {[%clk 0:00:53]} 25. a4 {[%clk
0:00:53.2]} 25... Rc1+ {[%clk 0:00:52.3]} 26. Rxc1 {[%clk 0:00:52.3]} 26...
Qxc1+ {[%clk 0:00:52.3]} 27. Kh2 {[%clk 0:00:52.9]} 27... Qc2 {[%clk 0:00:47.5]}
28. Qg3 {[%clk 0:00:37.6]} 28... Bh4 {[%clk 0:00:43.8]} 29. Qf3 {[%clk
0:00:33.7]} 29... Bg5 {[%clk 0:00:43.1]} 30. g3 {[%clk 0:00:32.9]} 30... Bd2
{[%clk 0:00:36.6]} 31. Qe2 {[%clk 0:00:29.9]} 31... Rxb3 {[%clk 0:00:31.9]} 32.
Rxd2 {[%clk 0:00:26.7]} 32... Qc6 {[%clk 0:00:31.8]} 33. Qg4 {[%clk 0:00:26]}
33... g6 {[%clk 0:00:31]} 34. Qf4 {[%clk 0:00:25.3]} 34... Rb4 {[%clk
0:00:30.5]} 35. h4 {[%clk 0:00:20.4]} 35... Rxa4 {[%clk 0:00:29.5]} 36. e6
{[%clk 0:00:19.6]} 36... Qxe6 {[%clk 0:00:28.3]} 37. Qb8+ {[%clk 0:00:19]} 1-0

[Event "*** Titled Tuesday Blitz"]
[Site "Chess.com"]
[Date "2020.04.07"]
[Round "1"]
[White "Jumbo"]
[Black "JulAnt"]
[Result "1-0"]
[WhiteElo "2798"]
[BlackElo "2420"]
[TimeControl "180+1"]
[EndTime "13:06:59 PDT"]
[Termination "Jumbo won by resignation"]

1. d4 {[%clk 0:03:00.7]} 1... Nf6 {[%clk 0:02:59.2]} 2. c4 {[%clk 0:03:00.8]}
2... d6 {[%clk 0:02:55.7]} 3. Nf3 {[%clk 0:02:59.8]} 3... Nbd7 {[%clk
0:02:54.6]} 4. Nc3 {[%clk 0:02:58.3]} 4... g6 {[%clk 0:02:54.7]} 5. g3 {[%clk
0:02:58.6]} 5... Bg7 {[%clk 0:02:54.5]} 6. Bg2 {[%clk 0:02:59.3]} 6... O-O
{[%clk 0:02:54.4]} 7. O-O {[%clk 0:03:00.2]} 7... e5 {[%clk 0:02:51.9]} 8. e4
{[%clk 0:03:00.9]} 8... Re8 {[%clk 0:02:49.5]} 9. Re1 {[%clk 0:02:52.7]} 9... a5
{[%clk 0:02:49]} 10. Qc2 {[%clk 0:02:40.8]} 10... exd4 {[%clk 0:02:47.3]} 11.
Nxd4 {[%clk 0:02:41.7]} 11... Nc5 {[%clk 0:02:47.5]} 12. Nb3 {[%clk 0:02:38.3]}
12... Nfd7 {[%clk 0:02:40.8]} 13. Be3 {[%clk 0:02:34]} 13... c6 {[%clk
0:02:05.1]} 14. Rad1 {[%clk 0:02:31.7]} 14... Qe7 {[%clk 0:02:03.9]} 15. f4
{[%clk 0:01:58.9]} 15... Nxb3 {[%clk 0:01:51.1]} 16. axb3 {[%clk 0:01:58.4]}
16... Nc5 {[%clk 0:01:51.1]} 17. Bf2 {[%clk 0:01:57]} 17... Bg4 {[%clk
0:01:48.3]} 18. Rd2 {[%clk 0:01:56.1]} 18... h5 {[%clk 0:01:43.4]} 19. h3 {[%clk
0:01:55.9]} 19... Bc8 {[%clk 0:01:36.6]} 20. Rde2 {[%clk 0:01:39.5]} 20... Ne6
{[%clk 0:01:34.7]} 21. Qd1 {[%clk 0:01:39.5]} 21... Qc7 {[%clk 0:01:21]} 22. Rd2
{[%clk 0:01:38.3]} 22... Bf8 {[%clk 0:01:16.5]} 23. Nd5 {[%clk 0:01:22.2]} 23...
Qd8 {[%clk 0:01:10.4]} 24. Bb6 {[%clk 0:01:18.3]} 24... cxd5 {[%clk 0:00:54.2]}
25. Bxd8 {[%clk 0:01:17.4]} 25... Rxd8 {[%clk 0:00:53.8]} 26. Rxd5 {[%clk
0:01:15.6]} 26... Nc5 {[%clk 0:00:53.2]} 27. e5 {[%clk 0:01:14.9]} 27... Be6
{[%clk 0:00:48.6]} 28. Rd2 {[%clk 0:01:14.4]} 28... a4 {[%clk 0:00:44.1]} 29.
bxa4 {[%clk 0:01:07]} 29... Bxc4 {[%clk 0:00:40.6]} 30. exd6 {[%clk 0:01:01]}
30... Bb3 {[%clk 0:00:40.5]} 31. Qf3 {[%clk 0:00:43.4]} 31... Rxd6 {[%clk
0:00:39.7]} 32. Rxd6 {[%clk 0:00:41.7]} 32... Bxd6 {[%clk 0:00:40.6]} 33. Qc3
{[%clk 0:00:37.7]} 33... Bxa4 {[%clk 0:00:33.4]} 34. b4 {[%clk 0:00:37.8]} 34...
Ne6 {[%clk 0:00:31.9]} 35. Bd5 {[%clk 0:00:34]} 35... Nc7 {[%clk 0:00:23.6]} 36.
Qf6 {[%clk 0:00:30.9]} 36... Nxd5 {[%clk 0:00:20.3]} 37. Qxd6 {[%clk 0:00:31.1]}
37... Bc6 {[%clk 0:00:20.4]} 38. b5 {[%clk 0:00:30.7]} 1-0

[Event "*** Titled Tuesday Blitz"]
[Site "Chess.com"]
[Date "2020.04.07"]
[Round "1"]
[White "pirulillo"]
[Black "talman67"]
[Result "1/2-1/2"]
[WhiteElo "2168"]
[BlackElo "2534"]
[TimeControl "180+1"]
[EndTime "13:06:59 PDT"]
[Termination "Game drawn by repetition"]

1. e4 {[%clk 0:02:57]} 1... e5 {[%clk 0:02:59.5]} 2. Bc4 {[%clk 0:02:55]} 2...
Nf6 {[%clk 0:02:59.4]} 3. d3 {[%clk 0:02:50.4]} 3... c6 {[%clk 0:02:59]} 4. Nf3
{[%clk 0:02:43.8]} 4... d5 {[%clk 0:02:59.1]} 5. Bb3 {[%clk 0:02:36.7]} 5... a5
{[%clk 0:02:59.2]} 6. a4 {[%clk 0:02:33.9]} 6... Bb4+ {[%clk 0:02:57.8]} 7. c3
{[%clk 0:02:33.3]} 7... Bd6 {[%clk 0:02:56.7]} 8. O-O {[%clk 0:02:31.5]} 8...
O-O {[%clk 0:02:47.4]} 9. Re1 {[%clk 0:02:30.8]} 9... Re8 {[%clk 0:02:46]} 10.
Nbd2 {[%clk 0:02:28.1]} 10... Nbd7 {[%clk 0:02:43.7]} 11. Bc2 {[%clk 0:02:18.9]}
11... Nf8 {[%clk 0:02:37.3]} 12. Nf1 {[%clk 0:02:17]} 12... Ng6 {[%clk
0:02:36.8]} 13. Ng3 {[%clk 0:02:16.4]} 13... h6 {[%clk 0:02:24.2]} 14. h3 {[%clk
0:02:14.3]} 14... b6 {[%clk 0:02:18.2]} 15. Qe2 {[%clk 0:02:10.2]} 15... Bb7
{[%clk 0:02:16.3]} 16. Nh2 {[%clk 0:02:02.2]} 16... Nf4 {[%clk 0:02:05]} 17. Qf3
{[%clk 0:01:57.4]} 17... c5 {[%clk 0:02:02.6]} 18. Ng4 {[%clk 0:01:47.9]} 18...
dxe4 {[%clk 0:01:51.1]} 19. dxe4 {[%clk 0:01:35.6]} 19... Nxg4 {[%clk
0:01:42.8]} 20. hxg4 {[%clk 0:01:33.5]} 20... g6 {[%clk 0:01:39.1]} 21. Nf1
{[%clk 0:01:26.9]} 21... Qg5 {[%clk 0:01:35.3]} 22. g3 {[%clk 0:01:26.2]} 22...
h5 {[%clk 0:01:22.1]} 23. gxf4 {[%clk 0:01:23.1]} 23... exf4 {[%clk 0:01:20.8]}
24. Qg2 {[%clk 0:01:22.7]} 24... hxg4 {[%clk 0:01:19.4]} 25. f3 {[%clk
0:01:22.9]} 25... g3 {[%clk 0:01:15.3]} 26. Nxg3 {[%clk 0:01:20.3]} 26... Qxg3
{[%clk 0:01:14.6]} 27. Qxg3 {[%clk 0:01:20.3]} 27... fxg3 {[%clk 0:01:15.5]} 28.
f4 {[%clk 0:01:17.9]} 28... c4 {[%clk 0:01:10.5]} 29. Kg2 {[%clk 0:01:15.6]}
29... f5 {[%clk 0:01:10.3]} 30. Kxg3 {[%clk 0:01:15]} 30... Bxe4 {[%clk
0:01:05.9]} 31. Bxe4 {[%clk 0:01:14.2]} 31... Rxe4 {[%clk 0:01:00.1]} 32. Rxe4
{[%clk 0:01:14.1]} 32... fxe4 {[%clk 0:01:01]} 33. Be3 {[%clk 0:01:15]} 33...
Bc5 {[%clk 0:01:00.2]} 34. Bxc5 {[%clk 0:01:07.5]} 34... bxc5 {[%clk 0:01:01.1]}
35. Re1 {[%clk 0:01:07.5]} 35... Re8 {[%clk 0:00:58.6]} 36. Kg4 {[%clk
0:01:05.5]} 36... Kf7 {[%clk 0:00:57.8]} 37. f5 {[%clk 0:01:05.5]} 37... gxf5+
{[%clk 0:00:33.6]} 38. Kxf5 {[%clk 0:01:06.4]} 38... e3 {[%clk 0:00:34.5]} 39.
Kf4 {[%clk 0:01:06.3]} 39... e2 {[%clk 0:00:35]} 40. Kf3 {[%clk 0:01:06.5]}
40... Kf6 {[%clk 0:00:35.4]} 41. Rxe2 {[%clk 0:01:06.5]} 41... Rxe2 {[%clk
0:00:35.3]} 42. Kxe2 {[%clk 0:01:06.8]} 42... Kg5 {[%clk 0:00:34.4]} 43. Kf3
{[%clk 0:01:04.5]} 43... Kf5 {[%clk 0:00:34.4]} 44. Ke3 {[%clk 0:01:03.3]} 44...
Ke5 {[%clk 0:00:34.7]} 45. Kf3 {[%clk 0:01:03.7]} 45... Kf5 {[%clk 0:00:33.8]}
46. Ke3 {[%clk 0:00:55.9]} 46... Ke5 {[%clk 0:00:30]} 47. Kf3 {[%clk 0:00:51.4]}
47... Kf5 {[%clk 0:00:29.7]} 1/2-1/2

[Event "*** Titled Tuesday Blitz"]
[Site "Chess.com"]
[Date "2020.04.07"]
[Round "1"]
[White "ValentinDragnev"]
[Black "ChristianAlm"]
[Result "1-0"]
[WhiteElo "2754"]
[BlackElo "2400"]
[TimeControl "180+1"]
[EndTime "13:07:00 PDT"]
[Termination "ValentinDragnev won on time"]

1. d4 {[%clk 0:02:51.5]} 1... Nf6 {[%clk 0:02:58.8]} 2. Nf3 {[%clk 0:02:47.3]}
2... d5 {[%clk 0:02:58.3]} 3. Bf4 {[%clk 0:02:45.5]} 3... g6 {[%clk 0:02:58]} 4.
Nbd2 {[%clk 0:02:44.1]} 4... Bg7 {[%clk 0:02:56.9]} 5. h3 {[%clk 0:02:44.3]}
5... O-O {[%clk 0:02:55]} 6. e3 {[%clk 0:02:44.7]} 6... c5 {[%clk 0:02:54.1]} 7.
Be2 {[%clk 0:02:40.7]} 7... Nc6 {[%clk 0:02:53.6]} 8. O-O {[%clk 0:02:40]} 8...
cxd4 {[%clk 0:02:50.1]} 9. exd4 {[%clk 0:02:39.7]} 9... Bf5 {[%clk 0:02:49.9]}
10. c3 {[%clk 0:02:39.4]} 10... Ne4 {[%clk 0:02:49.5]} 11. Re1 {[%clk
0:02:37.6]} 11... Re8 {[%clk 0:02:38.7]} 12. Nh4 {[%clk 0:02:27.2]} 12... e6
{[%clk 0:02:30.2]} 13. Nxf5 {[%clk 0:02:26.3]} 13... exf5 {[%clk 0:02:31.1]} 14.
Nxe4 {[%clk 0:02:20.6]} 14... fxe4 {[%clk 0:02:01.5]} 15. Qb3 {[%clk 0:02:09.5]}
15... Qd7 {[%clk 0:02:00]} 16. Rad1 {[%clk 0:02:09.3]} 16... Rac8 {[%clk
0:01:53.5]} 17. Bg4 {[%clk 0:02:04.1]} 17... f5 {[%clk 0:01:52.3]} 18. Be2
{[%clk 0:02:04.6]} 18... a6 {[%clk 0:01:43]} 19. Qa4 {[%clk 0:01:51.6]} 19...
Re7 {[%clk 0:01:35.2]} 20. Bf1 {[%clk 0:01:40.1]} 20... h6 {[%clk 0:01:30.4]}
21. Be3 {[%clk 0:01:29]} 21... Rf8 {[%clk 0:01:22.5]} 22. c4 {[%clk 0:01:22.6]}
22... Kh7 {[%clk 0:01:13.8]} 23. cxd5 {[%clk 0:01:21.8]} 23... Qxd5 {[%clk
0:01:14.7]} 24. Bc4 {[%clk 0:01:21.6]} 24... Qd7 {[%clk 0:01:13.6]} 25. d5
{[%clk 0:01:21.4]} 25... Ne5 {[%clk 0:01:02.6]} 26. Qb3 {[%clk 0:01:16.8]} 26...
Nxc4 {[%clk 0:00:27.7]} 27. Qxc4 {[%clk 0:01:17.7]} 27... Rd8 {[%clk 0:00:25.2]}
28. d6 {[%clk 0:01:09.7]} 28... Re6 {[%clk 0:00:24]} 29. Bb6 {[%clk 0:01:09.7]}
29... Rc8 {[%clk 0:00:23]} 30. Qxc8 {[%clk 0:01:00.8]} 30... Qxc8 {[%clk
0:00:18.6]} 31. d7 {[%clk 0:01:01.3]} 31... Qxd7 {[%clk 0:00:16.5]} 32. Rxd7
{[%clk 0:01:02.2]} 32... Rxb6 {[%clk 0:00:17]} 33. Rc1 {[%clk 0:01:02.6]} 33...
Kg8 {[%clk 0:00:04.5]} 34. Rc8+ {[%clk 0:01:00.1]} 34... Bf8 {[%clk 0:00:03.4]}
35. Rb8 {[%clk 0:00:54.4]} 35... Rf6 {[%clk 0:00:03.1]} 36. Rdxb7 {[%clk
0:00:52.6]} 36... f4 {[%clk 0:00:04]} 37. Rb6 {[%clk 0:00:50]} 37... Rf7 {[%clk
0:00:01]} 38. Rxg6+ {[%clk 0:00:49.1]} 38... Kh7 {[%clk 0:00:01.9]} 39. Rxa6
{[%clk 0:00:49.3]} 39... e3 {[%clk 0:00:02.2]} 40. Re6 {[%clk 0:00:42.7]} 1-0